bitfinex/quotes_BTCUSD_20251224
["timestamp","ask_amount","ask_price","bid_price","bid_amount"]
[1766561741360,0.01152,87090.0,87086.0,0.000356]
[1766561741576,0.01157729,87090.0,87080.0,0.01148369]
[1766561742514,5.729e-05,87090.0,87084.0,0.01148316]
[1766561742669,0.01192,87095.0,87086.0,0.0114829]
[1766561743075,0.01192,87095.0,87085.0,0.01148303]
[1766561743278,0.01192,87095.0,87089.0,0.0114825]
[1766561743503,0.011371,87095.0,87089.0,5.729e-05]
[1766561743689,0.01152,87099.0,87089.0,5.729e-05]
[1766561743883,0.01148145,87097.0,87089.0,5.729e-05]
[1766561744111,0.01148158,87096.0,87089.0,5.729e-05]
[1766561744402,0.01148145,87097.0,87089.0,5.729e-05]
[1766561744604,0.01148158,87096.0,87089.0,5.729e-05]
[1766561744805,0.01148184,87094.0,87089.0,2.9e-07]
[1766561744996,0.01148211,87092.0,87089.0,2.9e-07]
[1766561745191,0.01148197,87093.0,87089.0,2.9e-07]
[1766561745449,0.01148211,87092.0,87089.0,2.9e-07]
[1766561745974,0.05741318,87089.0,87085.0,0.01152]
[1766561746172,0.0114825,87089.0,87076.0,0.01148422]
[1766561746377,0.33044,87084.0,87077.0,0.01152]
[1766561746673,0.33044,87084.0,87074.0,0.03447326]
[1766561746828,0.33044,87084.0,87073.0,0.01148461]
[1766561746829,0.34192316,87084.0,87078.0,0.01152]
[1766561747029,0.01148316,87084.0,87078.0,0.01152]
[1766561747243,0.06889828,87085.0,87078.0,0.01152]
[1766561747444,0.01148395,87078.0,87074.0,0.01152]
[1766561747713,0.34192448,87074.0,87070.0,0.01152]
[1766561747929,0.01148474,87072.0,87070.0,0.01152]
[1766561748127,0.01148474,87072.0,87060.0,0.01148633]
[1766561748329,0.01148461,87073.0,87061.0,0.02300619]
[1766561748603,0.01148461,87073.0,87062.0,0.01148606]
[1766561748851,0.33044,87074.0,87064.0,0.0114858]
[1766561749059,0.33044,87074.0,87065.0,0.01148567]
[1766561749272,0.33044,87074.0,87063.0,0.01148593]
[1766561749473,0.34192448,87074.0,87063.0,0.01148593]
[1766561750382,0.33044,87074.0,87064.0,0.0114858]
[1766561750946,0.33044,87074.0,87065.0,0.01148567]
[1766561751761,0.329891,87074.0,87067.0,0.0114854]
[1766561751963,0.329891,87074.0,87068.0,0.01148527]
[1766561752421,0.329891,87074.0,87067.0,0.01152]
[1766561753518,0.329891,87074.0,87067.0,0.0230054]
[1766561754276,0.01148408,87077.0,87067.0,0.01152]
[1766561754603,0.01148422,87076.0,87067.0,0.01152]
[1766561754987,0.01148395,87078.0,87067.0,0.01152]
[1766561755698,0.01148395,87078.0,87067.0,0.0230054]
[1766561755901,0.06345521,87100.0,87067.0,0.0230054]
[1766561755902,0.01148277,87087.0,87078.0,0.00055]
[1766561756103,0.01148303,87085.0,87078.0,0.00055]
[1766561756438,0.01148303,87085.0,87077.0,0.01152]
[1766561756999,0.01148316,87084.0,87077.0,0.01152]
[1766561757224,0.01148356,87081.0,87077.0,0.010971]
[1766561757398,0.01148369,87080.0,87077.0,0.010971]
[1766561758006,0.06890103,87082.0,87077.0,0.010971]
[1766561758007,0.25268275,87092.0,87077.0,0.010971]
[1766561758200,0.01148303,87085.0,87080.0,0.001099]
[1766561758586,0.00010684,87087.0,87077.0,0.010971]
[1766561759212,0.01158961,87087.0,87077.0,0.010971]
[1766561759554,0.0114829,87086.0,87077.0,0.010971]
[1766561759806,0.01158961,87087.0,87077.0,0.010971]
[1766561760332,0.00010684,87087.0,87077.0,0.010971]
[1766561760507,0.00010684,87087.0,87078.0,0.01148395]
[1766561760906,0.00010684,87087.0,87076.0,0.01148422]
[1766561761067,0.00010684,87087.0,87077.0,0.02300408]
[1766561761270,0.00010684,87087.0,87077.0,0.01152]
[1766561762060,0.00010684,87087.0,87077.0,0.02300408]
[1766561762361,0.01158961,87087.0,87077.0,0.01152]
[1766561762783,0.00010684,87087.0,87077.0,0.02300408]
[1766561762984,0.01158961,87087.0,87077.0,0.01152]
[1766561764026,0.0114829,87086.0,87077.0,0.01152]
[1766561764433,0.0114829,87086.0,87070.0,0.01148435]
[1766561764434,0.05741669,87083.0,87070.0,0.01148435]
[1766561764646,0.31883329,87083.0,87071.0,0.01152]
[1766561765297,0.01148356,87081.0,87071.0,0.01152]
[1766561765497,0.01148342,87082.0,87071.0,0.01152]
[1766561766813,0.01148342,87082.0,87071.0,0.02300488]
[1766561767024,0.01148356,87081.0,87071.0,0.01152]
[1766561767204,0.01148342,87082.0,87071.0,0.01152]
[1766561767403,0.01148342,87082.0,87071.0,0.02300488]
[1766561767604,0.01148356,87081.0,87071.0,0.01152]
[1766561767803,0.01148369,87080.0,87071.0,0.01152]
[1766561767988,0.01148342,87082.0,87071.0,0.01152]
[1766561768390,0.01148356,87081.0,87071.0,0.01152]
[1766561768773,0.01148369,87080.0,87071.0,0.01152]
[1766561769260,0.01148369,87080.0,87072.0,0.01152]
[1766561769593,0.01148382,87079.0,87072.0,0.01152]
[1766561769802,0.01148369,87080.0,87072.0,0.01152]
[1766561770209,0.30735,87083.0,87076.0,0.01148422]
[1766561770414,0.30735,87083.0,87080.0,0.000549]
[1766561770617,0.30735,87083.0,87081.0,0.0574178]
[1766561770960,0.30735,87083.0,87079.0,0.01148382]
[1766561771094,0.30735,87083.0,87080.0,0.01148369]
[1766561771293,0.3068,87083.0,87081.0,0.05741718]
[1766561772060,0.29507774,87083.0,87080.0,0.06890158]
[1766561775325,0.29507774,87083.0,87081.0,0.05741726]
[1766561775499,0.29507774,87083.0,87080.0,0.06890158]
[1766561776470,0.30735,87089.0,87082.0,0.01148342]
[1766561777107,0.30735,87089.0,87081.0,0.01148356]
[1766561778006,0.30735,87089.0,87082.0,0.01148342]
[1766561778378,0.30735,87089.0,87083.0,0.06889977]
[1766561779154,0.00055,87083.0,87080.0,0.01148369]
[1766561779389,0.30745684,87087.0,87083.0,0.01148329]
[1766561781548,0.30745684,87087.0,87084.0,0.05741582]
[1766561781887,0.30472834,87087.0,87086.0,0.0574145]
[1766561782088,0.30417934,87087.0,87086.0,0.0574145]
[1766561782288,0.29832006,87087.0,87086.0,0.0574145]
[1766561782709,0.51615537,87100.0,87086.0,0.0574145]
[1766561782710,0.06550193,87100.0,87090.0,0.05741187]
[1766561782884,0.31887,87099.0,87088.0,0.01148263]
[1766561783083,0.31887,87099.0,87084.0,0.02300316]
[1766561783084,0.00055,87088.0,87084.0,0.02300316]
[1766561783293,0.3079,87088.0,87078.0,0.0689037]
[1766561783580,0.3079,87088.0,87080.0,0.01148369]
[1766561784275,0.000549,87090.0,87080.0,0.01148369]
[1766561784479,0.000549,87090.0,87079.0,0.02300382]
[1766561784480,0.3188325,87089.0,87079.0,0.01152]
[1766561784751,0.30735,87089.0,87079.0,0.02300382]
[1766561785173,0.30735,87089.0,87079.0,0.01152]
[1766561785361,0.30735,87089.0,87080.0,0.01148369]
[1766561785711,0.30735,87089.0,87082.0,0.01148342]
[1766561786115,0.30735,87089.0,87084.0,0.01148316]
[1766561786336,0.30735,87089.0,87085.0,0.01148303]
[1766561787155,0.30735,87089.0,87084.0,0.01148316]
[1766561787587,0.30735,87089.0,87085.0,0.01148303]
[1766561787983,0.30735,87089.0,87082.0,0.01148342]
[1766561788184,0.30735,87089.0,87079.0,0.08042266]
[1766561788593,0.30735,87089.0,87080.0,0.01148369]
[1766561790223,0.30735,87089.0,87079.0,0.02300382]
[1766561791007,0.30735,87089.0,87082.0,0.01148342]
[1766561791623,0.30735,87089.0,87084.0,0.01148316]
[1766561792433,0.30735,87089.0,87083.0,0.01148329]
[1766561792777,0.30735,87089.0,87085.0,0.01148303]
[1766561793282,0.30735,87089.0,87084.0,0.01148316]
[1766561793735,0.30735,87089.0,87085.0,0.01148303]
[1766561793892,0.30735,87089.0,87086.0,0.0114829]
[1766561795393,0.000549,87090.0,87087.0,0.01148277]
[1766561795679,0.000549,87090.0,87087.0,0.06889662]
[1766561796052,0.01152,87093.0,87086.0,0.0114829]
[1766561796251,0.01152,87093.0,87085.0,0.01148303]
[1766561796489,0.01152,87093.0,87084.0,0.01148316]
[1766561796703,0.28737,87089.0,87081.0,0.01152]
[1766561797229,0.01148303,87085.0,87073.0,0.02300461]
[1766561797403,0.28737,87084.0,87073.0,0.02311145]
[1766561797930,0.01152,87088.0,87073.0,0.25280304]
[1766561798067,0.29889,87088.0,87078.0,0.01148395]
[1766561798265,0.31037263,87088.0,87077.0,0.01148408]
[1766561798968,0.01148303,87085.0,87074.0,0.01148448]
[1766561799160,0.01148303,87085.0,87073.0,0.01162684]
[1766561799389,0.01148303,87085.0,87075.0,0.01148435]
[1766561799390,0.28737,87085.0,87075.0,0.01148435]
[1766561799602,0.28737,87085.0,87078.0,0.01148395]
[1766561799804,0.28737,87085.0,87080.0,0.01148369]
[1766561800182,0.28737,87085.0,87081.0,0.01148356]
[1766561800388,0.28737,87085.0,87080.0,0.01148369]
[1766561800582,0.28737,87085.0,87079.0,0.01148382]
[1766561800791,0.28737,87085.0,87078.0,0.02300395]
[1766561801118,0.28737,87085.0,87078.0,0.08042319]
[1766561801423,0.28737,87085.0,87078.0,0.02300395]
[1766561801622,0.28737,87085.0,87080.0,0.01148369]
[1766561802308,0.28737,87085.0,87079.0,0.01148382]
[1766561802485,0.28737,87085.0,87078.0,3.631e-05]
[1766561802889,0.02300263,87088.0,87073.0,0.00010684]
[1766561802890,0.28737,87081.0,87073.0,0.00010684]
[1766561803251,0.01148342,87082.0,87070.0,0.01152]
[1766561803252,0.28737,87075.0,87070.0,0.01152]
[1766561804750,0.28737,87082.0,87071.0,0.06890924]
[1766561804969,0.28737,87082.0,87073.0,0.01148461]
[1766561805170,0.28737,87082.0,87070.0,0.01152]
[1766561805171,0.28737,87082.0,87077.0,0.01148408]
[1766561805325,0.28737,87082.0,87076.0,0.01148422]
[1766561805510,0.28737,87082.0,87075.0,0.01148435]
[1766561805716,0.28737,87082.0,87076.0,0.01148422]
[1766561806068,0.28737,87088.0,87078.0,0.01148395]
[1766561806269,0.03909559,87090.0,87081.0,0.01148356]
[1766561806567,0.03909559,87090.0,87080.0,0.01148369]
[1766561807216,0.05057796,87090.0,87079.0,0.01148382]
[1766561807420,0.05057796,87090.0,87076.0,0.02300422]
[1766561807421,0.0114825,87089.0,87076.0,0.02300422]
[1766561807613,0.0114825,87089.0,87078.0,0.01148395]
[1766561807858,0.01148277,87087.0,87076.0,0.02300422]
[1766561808219,0.01148277,87087.0,87077.0,0.01148408]
[1766561808461,0.01148277,87087.0,87076.0,0.02300422]
[1766561808668,0.01148263,87088.0,87077.0,0.01148408]
[1766561809171,0.01148277,87087.0,87076.0,0.02300422]
[1766561809380,0.01148263,87088.0,87076.0,0.02300422]
[1766561809682,0.01148263,87088.0,87077.0,0.01148408]
[1766561810027,0.0362875,87089.0,87077.0,0.01148408]
[1766561810231,0.024805,87089.0,87077.0,0.01148408]
[1766561810482,0.024805,87089.0,87079.0,0.01148382]
[1766561811048,0.0362875,87089.0,87079.0,0.01148382]
[1766561811243,0.024805,87089.0,87079.0,0.01148382]
[1766561811991,0.0362875,87089.0,87078.0,0.01148395]
[1766561812215,0.0362875,87089.0,87077.0,0.01148408]
[1766561812216,0.01148263,87088.0,87077.0,0.01148408]
[1766561812384,0.0362875,87089.0,87078.0,0.01148395]
[1766561812799,0.0362875,87089.0,87077.0,0.01148408]
[1766561812800,0.024805,87089.0,87080.0,0.05741807]
[1766561813017,0.31494559,87090.0,87080.0,0.01148369]
[1766561813810,0.31494559,87090.0,87079.0,0.01148382]
[1766561814035,0.31494559,87090.0,87081.0,0.01148356]
[1766561814177,0.31494559,87090.0,87080.0,0.01148369]
[1766561814380,0.28737,87090.0,87081.0,0.01148356]
[1766561814608,0.28737,87090.0,87082.0,0.01148342]
[1766561814832,0.28737,87090.0,87079.0,0.01148382]
[1766561815041,0.02300197,87093.0,87080.0,0.01148369]
[1766561815233,0.02335851,87093.0,87081.0,0.01148356]
[1766561815920,0.01187654,87093.0,87083.0,0.01148329]
[1766561816070,0.01187654,87093.0,87082.0,0.01123511]
[1766561816239,0.02335851,87093.0,87082.0,0.01123511]
[1766561816438,0.01187654,87093.0,87083.0,0.01148329]
[1766561816882,0.02335851,87093.0,87082.0,0.01123511]
[1766561817088,0.01148211,87092.0,87082.0,0.01152]
[1766561817424,0.01148277,87087.0,87082.0,0.01152]
[1766561817634,0.0114829,87086.0,87082.0,0.01152]
[1766561820948,0.09370197,87088.0,87082.0,0.01152]
[1766561820949,0.02480613,87088.0,87082.0,0.01152]
[1766561822121,0.0114829,87086.0,87082.0,0.01152]
[1766561822325,0.34752754,87086.0,87073.0,0.01148461]
[1766561822526,0.01148316,87084.0,87077.0,0.01152]
[1766561823094,0.27863,87085.0,87077.0,0.01152]
[1766561823570,0.06889479,87090.0,87077.0,0.01152]
[1766561823768,0.0114825,87089.0,87077.0,0.02300408]
[1766561823982,0.0114825,87089.0,87078.0,0.01148395]
[1766561824307,0.01148263,87088.0,87077.0,0.02300408]
[1766561825164,0.03629119,87089.0,87077.0,0.02300408]
[1766561825779,0.01148263,87088.0,87077.0,0.02300408]
[1766561826570,0.0114825,87089.0,87078.0,0.01148395]
[1766561826821,0.01148263,87088.0,87077.0,0.02300408]
[1766561827162,0.0114825,87089.0,87078.0,0.01148395]
[1766561827598,0.01148263,87088.0,87077.0,0.01152]
[1766561827783,0.01148263,87088.0,87077.0,0.02300408]
[1766561828028,0.01148263,87088.0,87078.0,0.01148395]
[1766561828581,0.0114825,87089.0,87077.0,0.02300408]
[1766561828785,0.2901125,87089.0,87077.0,0.02300408]
[1766561828991,0.30343869,87088.0,87077.0,0.01152]
[1766561829195,0.30343869,87087.0,87077.0,0.01152]
[1766561829398,0.0114829,87086.0,87077.0,0.01152]
[1766561829798,0.29011277,87087.0,87077.0,0.01152]
[1766561830317,0.2901129,87086.0,87077.0,0.01152]
[1766561830501,0.27863,87086.0,87077.0,0.01152]
[1766561831275,0.2901129,87086.0,87077.0,0.01152]
[1766561832323,0.01148303,87085.0,87077.0,0.01152]
[1766561832522,0.29011303,87085.0,87077.0,0.01152]
[1766561832928,0.01148316,87084.0,87077.0,0.01152]
[1766561833142,0.29011303,87085.0,87077.0,0.01152]
[1766561833462,0.27863,87085.0,87077.0,0.01152]
[1766561835815,0.01152,87088.0,87078.0,0.01148395]
[1766561836026,0.01152,87088.0,87077.0,0.01152]
[1766561836223,0.01152,87088.0,87078.0,0.05741978]
[1766561836472,0.01152,87088.0,87079.0,0.01148382]
[1766561836678,0.01152,87088.0,87080.0,0.01148369]
[1766561838702,0.29015,87088.0,87080.0,0.01148369]
[1766561838908,0.29015,87088.0,87077.0,0.02300408]
[1766561838909,0.27863,87092.0,87083.0,0.01148329]
[1766561839126,0.02482488,87091.0,87080.0,0.01148369]
[1766561839328,0.30345488,87091.0,87081.0,0.01148356]
[1766561839546,0.27863,87091.0,87081.0,0.01148356]
[1766561840142,0.29011224,87091.0,87077.0,0.01152]
[1766561840554,0.01148263,87088.0,87077.0,0.01152]
[1766561840758,0.0248235,87088.0,87077.0,0.01152]
[1766561840882,0.0248235,87088.0,87077.0,0.06893989]
[1766561841305,0.0248235,87088.0,87078.0,0.01148395]
[1766561841645,0.03630613,87088.0,87077.0,0.02300408]
[1766561841994,0.0248235,87088.0,87078.0,0.01148395]
[1766561842528,0.0248235,87088.0,87077.0,0.02300408]
[1766561842710,0.3034535,87088.0,87077.0,0.02300408]
[1766561842893,0.27863,87088.0,87077.0,0.02300408]
[1766561843092,0.27863,87088.0,87078.0,0.01148395]
[1766561843347,0.29011263,87088.0,87077.0,0.02300408]
[1766561843573,0.27863,87088.0,87077.0,0.02300408]
[1766561843801,0.27863,87088.0,87079.0,0.01148382]
[1766561845158,0.27863,87088.0,87080.0,0.01148369]
[1766561845366,0.27863,87088.0,87079.0,0.01148382]
[1766561845544,0.27863,87088.0,87080.0,0.01148369]
[1766561847245,0.27863,87088.0,87082.0,0.01148342]
[1766561848601,0.27863,87088.0,87081.0,0.01148356]
[1766561849423,0.27863,87088.0,87082.0,0.01148342]
[1766561849637,0.27863,87088.0,87081.0,0.01148356]
[1766561849954,0.27863,87088.0,87082.0,0.01148342]
[1766561850571,0.27863,87088.0,87083.0,0.01148329]
[1766561851014,0.27863,87088.0,87082.0,0.01148342]
[1766561851413,0.27863,87088.0,87083.0,0.01148329]
[1766561851842,0.31525559,87092.0,87083.0,0.01148329]
[1766561852031,0.02481787,87091.0,87082.0,0.01148342]
[1766561852196,0.28768,87091.0,87083.0,0.01148329]
[1766561853392,0.28768,87091.0,87082.0,0.01148342]
[1766561856731,0.28768,87091.0,87083.0,0.01148329]
[1766561856986,0.28768,87091.0,87081.0,0.01148356]
[1766561857227,0.29916224,87091.0,87080.0,0.01148369]
[1766561857412,0.43914822,87090.0,87080.0,0.01148369]
[1766561857820,0.43914822,87090.0,87081.0,0.01148356]
[1766561858175,0.28768,87091.0,87081.0,0.01148356]
[1766561858378,0.28768,87091.0,87082.0,0.01148342]
[1766561860400,0.28768,87091.0,87083.0,0.01148329]
[1766561862993,0.28768,87091.0,87081.0,0.01148356]
[1766561863203,0.28768,87091.0,87080.0,0.05741785]
[1766561863400,0.28768,87091.0,87083.0,0.01148329]
[1766561863616,0.28768,87091.0,87081.0,0.01148356]
[1766561863850,0.28768,87091.0,87082.0,0.01148342]
[1766561864199,0.28768,87091.0,87081.0,0.01148356]
[1766561865560,0.02481274,87090.0,87082.0,0.01148342]
[1766561865771,0.28768,87091.0,87083.0,0.01148329]
[1766561865989,0.28768,87091.0,87082.0,0.01148342]
[1766561866215,0.28768,87091.0,87083.0,0.01148329]
[1766561866415,0.28768,87091.0,87084.0,0.01148316]
[1766561866622,0.28768,87091.0,87083.0,0.01148329]
[1766561867182,0.28768,87091.0,87082.0,0.01148342]
[1766561867375,0.28768,87091.0,87083.0,0.01148329]
[1766561868487,0.28768,87091.0,87082.0,0.01148342]
[1766561868921,0.28768,87091.0,87083.0,0.01148329]
[1766561869130,0.28768,87091.0,87082.0,0.01148342]
[1766561869349,0.02481842,87090.0,87082.0,0.01148342]
[1766561869704,0.02481842,87090.0,87081.0,0.01148356]
[1766561869907,0.02481842,87090.0,87080.0,0.01148369]
[1766561870137,0.02481842,87090.0,87079.0,0.01148382]
[1766561871018,0.02481842,87090.0,87080.0,0.01148369]
[1766561871194,0.02481842,87090.0,87079.0,0.01148382]
[1766561871599,0.03630079,87090.0,87079.0,0.01148382]
[1766561872554,0.02481842,87090.0,87080.0,0.01148369]
[1766561872728,0.02481842,87090.0,87081.0,0.01148356]
[1766561872947,0.02481842,87090.0,87082.0,0.01148342]
[1766561873362,0.02481842,87090.0,87080.0,0.01148369]
[1766561873530,0.32331079,87090.0,87079.0,0.01148382]
[1766561873732,0.29849237,87090.0,87079.0,0.01148382]
[1766561874318,0.28701,87090.0,87080.0,0.01148369]
[1766561875322,0.29849237,87090.0,87079.0,0.01148382]
[1766561875726,0.28701,87090.0,87080.0,0.01148369]
[1766561876387,0.28701,87090.0,87078.0,0.01148395]
[1766561876581,0.0248227,87089.0,87079.0,0.01148382]
[1766561876782,0.0114825,87089.0,87078.0,0.01148395]
[1766561877000,0.29849237,87090.0,87079.0,0.01148382]
[1766561877416,0.28701,87090.0,87080.0,0.01148369]
[1766561877626,0.02482483,87089.0,87080.0,0.01148369]
[1766561877818,0.02482483,87089.0,87081.0,0.01148356]
[1766561878025,0.28701,87090.0,87082.0,0.01148342]
[1766561878691,0.28701,87090.0,87083.0,0.01148329]
[1766561879900,0.28701,87090.0,87082.0,0.01148342]
[1766561880102,0.286461,87090.0,87084.0,0.01148316]
[1766561880309,0.27596591,87090.0,87086.0,0.0114829]
[1766561880488,0.00035654,87093.0,87085.0,0.01148303]
[1766561880888,0.00035654,87093.0,87084.0,0.0688984]
[1766561881101,0.00035654,87093.0,87086.0,0.0114829]
[1766561881294,5.4e-07,87093.0,87087.0,0.01148277]
[1766561881471,5.4e-07,87093.0,87086.0,0.0114829]
[1766561881806,5.4e-07,87093.0,87085.0,0.01148303]
[1766561882027,5.4e-07,87093.0,87087.0,0.01148277]
[1766561882218,5.4e-07,87093.0,87086.0,0.0114829]
[1766561882450,5.4e-07,87093.0,87088.0,0.01148263]
[1766561882886,5.4e-07,87093.0,87087.0,0.01148277]
[1766561883241,5.4e-07,87093.0,87086.0,0.0114829]
[1766561883444,5.4e-07,87093.0,87087.0,0.01148277]
[1766561883845,5.4e-07,87093.0,87088.0,0.01148263]
[1766561884045,5.4e-07,87093.0,87089.0,0.0114825]
[1766561884247,5.4e-07,87093.0,87090.0,0.01148237]
[1766561887123,5.4e-07,87093.0,87092.0,0.05741055]
[1766561887559,0.30037,87165.0,87135.0,0.01147644]
[1766561887790,0.0004,87178.0,87090.0,2.63430978]
[1766561887791,0.01076462,87156.0,87136.0,0.00924]
[1766561887946,0.01152,87175.0,87136.0,0.00924]
[1766561887947,0.000349,87170.0,87157.0,0.0001]
[1766561888181,0.43905163,87190.0,87157.0,0.0001]
[1766561888182,0.23909,87184.0,87163.0,0.00599311]
[1766561888396,0.30037,87192.0,87183.0,0.01147012]
[1766561888604,0.06880788,87200.0,87178.0,0.06882423]
[1766561888605,0.01156815,87198.0,87178.0,0.06882423]
[1766561888821,0.01146973,87186.0,87179.0,0.05697]
[1766561889020,0.31183894,87192.0,87180.0,0.04596]
[1766561889227,0.31183894,87192.0,87165.0,0.22944957]
[1766561889228,0.01147012,87183.0,87162.0,0.01147288]
[1766561889431,0.01146986,87185.0,87167.0,0.02752846]
[1766561889641,0.30037,87185.0,87168.0,0.05736049]
[1766561889856,0.01146999,87184.0,87167.0,0.02752846]
[1766561890054,0.30037,87185.0,87169.0,0.02303196]
[1766561890267,0.01146999,87184.0,87169.0,0.02303196]
[1766561890475,0.01147091,87177.0,87170.0,0.01156]
[1766561890676,0.01147091,87177.0,87164.0,0.00599311]
[1766561890677,0.30037,87178.0,87167.0,0.01147223]
[1766561890910,0.30037,87178.0,87168.0,0.05748]
[1766561891113,0.30037,87178.0,87165.0,0.01147249]
[1766561891331,0.30037,87178.0,87166.0,0.05748]
[1766561891535,0.01147091,87177.0,87167.0,0.05748]
[1766561891736,0.01147078,87178.0,87165.0,0.01147249]
[1766561891965,0.01147065,87179.0,87167.0,0.01147223]
[1766561892185,0.01147065,87179.0,87168.0,0.05748]
[1766561892382,0.01147065,87179.0,87164.0,0.00599311]
[1766561892572,0.01147052,87180.0,87169.0,0.05748]
[1766561892774,0.01147065,87179.0,87169.0,0.04625931]
[1766561893041,0.30037,87182.0,87171.0,0.01376549]
[1766561893241,0.30037,87182.0,87179.0,0.000549]
[1766561893449,0.30037,87193.0,87182.0,0.00055]
[1766561893645,0.0114692,87190.0,87180.0,0.01156]
[1766561893983,0.0021724,87181.0,87180.0,0.00016149]
[1766561894383,0.01147078,87178.0,87177.0,0.04428755]
[1766561894584,0.01147078,87178.0,87177.0,0.01156]
[1766561894849,0.01147091,87177.0,87165.0,0.01147249]
[1766561895000,0.01147078,87178.0,87166.0,0.02303236]
[1766561895326,0.01147078,87178.0,87166.0,0.01147236]
[1766561895579,0.01147078,87178.0,87167.0,0.05748]
[1766561895840,0.01147065,87179.0,87167.0,0.06895223]
[1766561896042,0.01147052,87180.0,87167.0,0.06895223]
[1766561896274,0.31184025,87182.0,87167.0,0.06895223]
[1766561896698,0.01147038,87181.0,87167.0,0.05748]
[1766561896829,0.01147104,87176.0,87167.0,0.05748]
[1766561897225,0.01147078,87178.0,87167.0,0.05748]
[1766561897655,0.068825,87178.0,87167.0,0.05748]
[1766561897837,0.01147117,87175.0,87168.0,0.01156]
[1766561898046,0.31184157,87172.0,87169.0,0.01156]
[1766561898259,0.31184157,87172.0,87156.0,0.01147367]
[1766561898260,0.3118417,87171.0,87156.0,0.01147367]
[1766561898489,0.3118417,87171.0,87159.0,0.03444314]
[1766561898490,0.01147249,87165.0,87159.0,0.03444314]
[1766561898698,0.01147288,87162.0,87159.0,0.03444314]
[1766561898899,0.01147288,87162.0,87146.0,0.07577397]
[1766561898900,0.01147328,87159.0,87151.0,0.04592]
[1766561899097,0.01147328,87159.0,87152.0,0.01156]
[1766561899864,0.01147315,87160.0,87152.0,0.01156]
[1766561900270,0.31184354,87157.0,87153.0,0.01156]
[1766561900511,0.30037,87155.0,87149.0,0.00011]
[1766561900719,0.30037,87155.0,87150.0,0.01156]
[1766561901345,0.30037,87162.0,87155.0,0.000549]
[1766561901552,0.30037,87162.0,87156.0,0.01156]
[1766561901965,0.30037,87162.0,87156.0,0.01067922]
[1766561903183,0.30037,87162.0,87157.0,0.01156]
[1766561904556,0.31184288,87162.0,87157.0,0.01156]
[1766561904956,0.01147302,87161.0,87157.0,0.01156]
[1766561905171,0.31184288,87162.0,87157.0,0.01156]
[1766561905376,0.01147302,87161.0,87157.0,0.01156]
[1766561905499,0.31184288,87162.0,87157.0,0.01156]
[1766561905705,0.00144863,87158.0,87157.0,0.01156]
[1766561906355,0.01292204,87158.0,87157.0,0.01156]
[1766561906568,0.01292204,87158.0,87149.0,0.00011]
[1766561906774,0.01147341,87158.0,87150.0,0.01156]
[1766561907394,0.01147328,87159.0,87150.0,0.01156]
[1766561907821,0.01147341,87158.0,87150.0,0.01156]
[1766561908479,0.33554328,87159.0,87150.0,0.01156]
[1766561909073,0.32407,87159.0,87150.0,0.01156]
[1766561909251,0.32407,87159.0,87150.0,0.02303446]
[1766561909461,0.01147236,87166.0,87150.0,0.02303446]
[1766561909462,0.32407,87181.0,87159.0,0.001099]
[1766561909673,0.01147209,87168.0,87160.0,0.01156]
[1766561909934,0.01147196,87169.0,87160.0,0.01156]
[1766561910158,0.01147223,87167.0,87161.0,0.01156]
[1766561910356,0.01147236,87166.0,87161.0,0.01156]
[1766561910586,0.01147236,87166.0,87162.0,0.01156]
[1766561910801,0.01147223,87167.0,87162.0,0.01156]
[1766561911269,0.33554275,87163.0,87154.0,0.04592]
[1766561911477,0.38143607,87160.0,87155.0,0.01156]
[1766561911674,0.21735527,87160.0,87155.0,0.01156]
[1766561911881,0.01147328,87159.0,87155.0,0.01156]
[1766561912092,0.33554328,87159.0,87155.0,0.01156]
[1766561912315,0.01147341,87158.0,87155.0,0.01156]
[1766561912542,0.33554354,87157.0,87149.0,0.00011]
[1766561912767,0.32407,87157.0,87150.0,0.01156]
[1766561913566,0.28907,87157.0,87150.0,0.01156]
[1766561914153,0.01147328,87159.0,87150.0,0.01156]
[1766561914353,0.01147328,87159.0,87150.0,0.51156]
[1766561914800,0.01147354,87157.0,87150.0,0.51156]
[1766561915151,0.01147354,87157.0,87151.0,0.02455248]
[1766561915350,0.01147354,87157.0,87152.0,0.02455248]
[1766561915555,0.01147354,87157.0,87153.0,0.02455248]
[1766561915788,0.01147341,87158.0,87150.0,0.51156]
[1766561916023,0.01147341,87158.0,87151.0,0.02455241]
[1766561916148,0.01147354,87157.0,87152.0,0.02455241]
[1766561916351,0.01147315,87160.0,87153.0,0.02455241]
[1766561916556,0.01147315,87160.0,87157.0,0.000549]
[1766561916799,0.05736468,87162.0,87157.0,0.012109]
[1766561917004,0.01147315,87160.0,87157.0,0.01156]
[1766561917210,0.01147249,87165.0,87157.0,0.01156]
[1766561917852,0.35245315,87160.0,87157.0,0.01156]
[1766561918253,0.34098,87160.0,87151.0,0.03078423]
[1766561918458,0.35245315,87160.0,87152.0,0.01152]
[1766561918686,0.34098,87160.0,87152.0,0.01152]
[1766561918888,0.35245315,87160.0,87152.0,0.01152]
[1766561919255,0.34098,87160.0,87152.0,0.01152]
[1766561919469,0.340431,87160.0,87152.0,0.01152]
[1766561919806,0.0344471,87182.0,87155.0,0.01147381]
[1766561919807,0.06883146,87171.0,87155.0,0.01147381]
[1766561920022,0.0114717,87171.0,87159.0,0.01147328]
[1766561920260,0.01147183,87170.0,87160.0,0.01152]
[1766561920578,0.0114717,87171.0,87160.0,0.01152]
[1766561920783,0.01147262,87164.0,87160.0,0.01152]
[1766561920980,0.01147302,87161.0,87156.0,0.03078423]
[1766561921184,0.01147275,87163.0,87157.0,0.01152]
[1766561921597,0.22943886,87170.0,87157.0,0.01152]
[1766561921598,0.06883311,87168.0,87157.0,0.01152]
[1766561921830,0.01157897,87168.0,87157.0,0.01152]
[1766561922029,0.00010688,87168.0,87157.0,0.02299354]
[1766561922227,0.00010688,87168.0,87158.0,0.01147341]
[1766561922431,0.00010688,87168.0,87157.0,0.05377777]
[1766561923062,0.00010688,87168.0,87160.0,0.01147315]
[1766561923268,0.34098,87172.0,87161.0,0.01376549]
[1766561923515,0.34098,87172.0,87168.0,0.000106]
[1766561923660,0.01147117,87175.0,87172.0,0.000443]
[1766561923891,0.01147117,87175.0,87163.0,0.03078423]
[1766561923892,0.0114717,87171.0,87163.0,0.03078423]
[1766561924079,0.01147157,87172.0,87164.0,0.04234423]
[1766561924351,0.01147144,87173.0,87164.0,0.04234423]
[1766561924558,0.0114717,87171.0,87164.0,0.04234423]
[1766561925828,0.01147157,87172.0,87164.0,0.04234423]
[1766561926231,0.0114717,87171.0,87165.0,0.01156]
[1766561926637,0.35245144,87173.0,87165.0,0.04234423]
[1766561926863,0.01147157,87172.0,87165.0,0.04234423]